fUSD/lending_fUSD_20260417
["ID","MTS","AMOUNT","RATE_DAILY","PERIOD"]
[420637380,1776393033288,-500.0,8.439e-05,2]
[420637381,1776393033297,-500.0,8.439e-05,2]
[420637382,1776393033307,-393.48429366,8.439e-05,2]
[420637383,1776393033316,-816.9284039,8.439e-05,2]
[420637384,1776393033326,-816.9284039,8.439e-05,2]
[420637385,1776393033336,-816.9284039,8.439e-05,2]
[420637386,1776393033345,-816.9284039,8.439e-05,2]
[420637387,1776393033354,-816.9284039,8.439e-05,2]
[420637388,1776393033364,-816.9284039,8.439e-05,2]
[420637389,1776393033373,-816.9284039,8.439e-05,2]
[420637390,1776393033383,-816.9284039,8.439e-05,2]
[420637391,1776393033393,-500.24551543,8.439e-05,2]
[420637392,1776393033402,-208.73153002,8.439e-05,2]
[420637393,1776393033412,-647.491013,8.439e-05,2]
[420637394,1776393033421,-501.05436308,8.439e-05,2]
[420637395,1776393033432,-375850.98992109,8.44e-05,2]
[420637396,1776393033446,-55745.94486373,8.44e-05,2]
[420637397,1776393033458,-55395.99390757,8.44e-05,2]
[420637398,1776393033470,-1770.0,8.44e-05,2]
[420637399,1776393033554,-31339.58921604,8.44e-05,2]
[420637403,1776393038132,-19839.4993279,8.44e-05,2]
[420637404,1776393038147,-483.09048,8.44e-05,2]
[420637562,1776393040184,-3093.41928878,8.44e-05,2]
[420637564,1776393040197,-557.76354529,8.44e-05,2]
[420637614,1776393040703,-337.05962658,8.44e-05,2]
[420637617,1776393040716,-1425.68399808,8.44e-05,2]
[420637624,1776393040778,-5229.39939235,8.44e-05,2]
[420637698,1776393041472,-4382.87693259,8.44e-05,2]
[420637700,1776393041482,-996.0087,8.441e-05,2]
[420637702,1776393041492,-152.0,8.442e-05,7]
[420637704,1776393041501,-9.0996476,8.523e-05,2]
[420637706,1776393041511,-2000.0,8.53e-05,2]
[420637708,1776393041521,-1232.199846,8.535e-05,2]
[420637710,1776393041534,-935.9829473,8.535e-05,2]
[420637712,1776393041543,-476.23650465,8.54e-05,2]
[420637714,1776393041553,-3179.3828743,8.54e-05,2]
[420637716,1776393041562,-500.0,8.54e-05,2]
[420637718,1776393041571,-1483.11126098,8.541e-05,2]
[420637720,1776393041583,-46.88873902,8.541e-05,2]
[420637722,1776393041593,-1530.0,8.541e-05,2]
[420637724,1776393041602,-76.65242086,8.541e-05,2]
[420637726,1776393041614,-414.21033056,8.541e-05,2]
[420637734,1776393041679,-297.00772812,8.541e-05,2]
[420637783,1776393043302,-742.12952046,8.541e-05,2]
[420637784,1776393043311,-167.0,8.541e-05,2]
[420637785,1776393043321,-1530.0,8.541e-05,2]
[420637786,1776393043330,-1113.63876592,8.541e-05,2]
[420637813,1776393048483,-416.36123408,8.541e-05,2]
[420637814,1776393048494,-1561.36757188,8.541e-05,2]
[420637815,1776393048503,-142.25887395,8.541e-05,2]
[420637816,1776393048545,-938.78645993,8.541e-05,2]
[420637817,1776393048557,-448.95466612,8.541e-05,2]
[420637818,1776393048567,-156.63078307,8.541e-05,2]
[420637819,1776393048579,-152.0,8.541e-05,2]
[420637820,1776393048589,-152.0,8.541e-05,2]
[420637821,1776393048599,-152.0,8.541e-05,2]
[420637822,1776393048609,-2076.8035271,8.597e-05,2]
[420637823,1776393048619,-851.4040602,8.597e-05,2]
[420637824,1776393048629,-150.0,8.6e-05,2]
[420637825,1776393048640,-2000.0,8.616e-05,2]
[420637826,1776393048651,-279.0,8.618e-05,5]
[420637827,1776393048662,-266.0,8.618e-05,5]
[420637828,1776393048672,-394.84835015,8.624e-05,2]
[420637829,1776393048682,-11804.019614,8.636e-05,2]
[420637830,1776393048691,-152.0,8.643e-05,7]
[420637831,1776393048703,-500.03584864,8.646e-05,2]
[420637832,1776393048713,-323.0,8.684e-05,2]
[420637833,1776393048723,-752.0,8.69e-05,2]
[420637834,1776393048734,-502.74187909,8.713e-05,2]
[420637835,1776393048743,-11693.41997565,8.725e-05,2]
[420637836,1776393048754,-392.0,8.739e-05,2]
[420637837,1776393048763,-377.0,8.749e-05,2]
[420637838,1776393048773,-510.2661689,8.756e-05,2]
[420637839,1776393048784,-377.0,8.763e-05,2]
[420637840,1776393048794,-427.0,8.824e-05,2]
[420637841,1776393048804,-392.0,8.824e-05,2]
[420637842,1776393048813,-377.0,8.827e-05,2]
[420637843,1776393048822,-150.0,8.846e-05,2]
[420637844,1776393048832,-150.0,8.846e-05,2]
[420637845,1776393048842,-209.50965009,8.846e-05,2]
[420637846,1776393048851,-1092.12732062,8.856e-05,3]
[420637847,1776393048860,-1259.81,8.907e-05,2]
[420637848,1776393048870,-392.0,8.93e-05,2]
[420637849,1776393048880,-392.0,8.931e-05,2]
[420637850,1776393048891,-377.0,8.938e-05,2]
[420637851,1776393048900,-392.0,8.938e-05,2]
[420637852,1776393048910,-516.0,8.943e-05,2]
[420637853,1776393048919,-383.82019915,8.946e-05,2]
[420637854,1776393048928,-265.62260098,8.949e-05,2]
[420637855,1776393048938,-377.0,8.949e-05,2]
[420637856,1776393048947,-377.0,8.977e-05,2]
[420637857,1776393048956,-400.0,8.987e-05,2]
[420637858,1776393048965,-395.0,8.991e-05,2]
[420637859,1776393048974,-377.0,9.004e-05,2]
[420637860,1776393048983,-377.0,9.004e-05,2]
[420637861,1776393048993,-438.0,9.031e-05,2]
[420637862,1776393049002,-377.0,9.036e-05,2]
[420637863,1776393049012,-377.0,9.037e-05,2]
[420637864,1776393049021,-377.0,9.04e-05,2]
[420637865,1776393049031,-415.54815951,9.056e-05,2]
[420637866,1776393049041,-1600.0,9.071e-05,2]
[420637867,1776393049051,-377.0,9.087e-05,2]
[420637868,1776393049060,-377.0,9.102e-05,2]
[420637869,1776393049071,-377.0,9.137e-05,2]
[420637870,1776393049080,-297.63,9.139e-05,2]
[420637871,1776393049090,-578.20924308,9.139e-05,2]
[420637872,1776393049101,-333.59525974,9.139e-05,2]
[420637874,1776393914291,150.00000001,7.792e-05,2]
[420637875,1776393918769,150.0,7.792e-05,2]
[420637876,1776393918900,153.09367327,7.792e-05,2]
[420637877,1776393922738,151.77529684,7.792e-05,2]
[420637879,1776393937679,151.62743791,7.792e-05,2]
[420637880,1776394040514,9848.38256209,8.239e-05,2]
[420637881,1776394040542,9991.11673791,8.239e-05,2]
[420637882,1776394065951,8.89326209,7.716e-05,2]
[420637883,1776394065977,1491.10673791,7.716e-05,2]
[420637887,1776394099388,-616.89,8.352e-05,2]
[420637888,1776394099412,-578.20924308,8.372e-05,2]
[420637889,1776394099435,-500.0,8.372e-05,2]
[420637890,1776394099459,-4610.24592586,8.372e-05,2]
[420637891,1776394099483,-444.90185228,8.372e-05,2]
[420637892,1776394099506,-151.0,8.372e-05,2]
[420637893,1776394099530,-174.61919141,8.372e-05,2]
[420637894,1776394099554,-180.52237413,8.372e-05,2]
[420637895,1776394099579,-500.0,8.427e-05,2]
[420637896,1776394099603,-151.0,8.427e-05,2]
[420637897,1776394099627,-2000.0,8.466e-05,2]
[420637898,1776394099650,-377.0,8.468e-05,2]
[420637899,1776394099673,-500.0,8.482e-05,2]
[420637900,1776394099696,-151.0,8.482e-05,2]
[420637901,1776394099719,-377.0,8.492e-05,2]
[420637902,1776394099742,-377.0,8.503e-05,2]
[420637903,1776394099766,-377.0,8.505e-05,2]
[420637904,1776394099790,-151.0,8.537e-05,2]
[420637905,1776394099813,-380.0,8.546e-05,2]
[420637906,1776394099836,-381.0,8.552e-05,2]
[420637907,1776394099858,-377.0,8.553e-05,2]
[420637908,1776394099879,-150.0,8.569e-05,2]
[420637909,1776394099902,-2500.0,8.57e-05,2]
[420637910,1776394099928,-151.0,8.592e-05,2]
[420637911,1776394099952,-377.0,8.609e-05,2]
[420637912,1776394099977,-160.07047832,8.643e-05,2]
[420637913,1776394100002,-500.70074508,8.643e-05,2]
[420637914,1776394100025,-151.0,8.647e-05,2]
[420637915,1776394100049,-154.01593134,8.658e-05,2]
[420637916,1776394100072,-200.0,8.665e-05,2]
[420637917,1776394100096,-646.65982734,8.665e-05,2]
[420637918,1776394100121,-1280.88388878,8.665e-05,2]
[420637919,1776394100144,-500.0,8.665e-05,2]
[420637920,1776394100168,-500.0,8.665e-05,2]
[420637921,1776394100192,-614.33783923,8.665e-05,2]
[420637922,1776394100215,-258.94270315,8.665e-05,2]
[420637936,1776394202054,10000.01,8.239e-05,2]
[420637937,1776394202080,10000.01,8.239e-05,2]
[420637938,1776394202107,10000.01,8.239e-05,2]
[420637939,1776394202137,10000.01,8.239e-05,2]
[420637940,1776394202165,10000.01,8.239e-05,2]
[420637941,1776394202190,10000.01,8.239e-05,2]
[420637942,1776394202217,4197.9806,8.239e-05,2]
[420637952,1776394232282,-464.20614992,8.439e-05,2]
[420637953,1776394232293,-1906.080117,8.637e-05,2]
[420637954,1776394232303,-262.0,8.637e-05,2]
[420637955,1776394232313,-516.83434842,8.665e-05,2]
[420637956,1776394232322,-377.0,8.665e-05,2]
[420637957,1776394232332,-300.0,8.668e-05,2]
[420637958,1776394232342,-217.53060649,8.668e-05,2]
[420637959,1776394232354,-253.46543089,8.668e-05,2]
[420637960,1776394232366,-729.00396262,8.668e-05,2]
[420637961,1776394232376,-82.50075159,8.669e-05,2]
[420637962,1776394232395,-417.49924841,8.669e-05,2]
[420637963,1776394232404,-433.62787547,8.669e-05,2]
[420637964,1776394232416,-147.43050892,8.669e-05,2]
[420637965,1776394232426,-500.0,8.669e-05,2]
[420637966,1776394232435,-500.0,8.669e-05,2]
[420637967,1776394232444,-500.0,8.669e-05,2]
[420637968,1776394232454,-500.0,8.669e-05,2]
[420637969,1776394232463,-500.0,8.669e-05,2]
[420637970,1776394232473,-500.0,8.669e-05,2]
[420637971,1776394232483,-371.94598902,8.669e-05,2]
[420637972,1776394232497,-128.05401098,8.669e-05,2]
[420637973,1776394232508,-500.0,8.669e-05,2]
[420637974,1776394232518,-254.50868283,8.669e-05,2]
[420637975,1776394232532,-209.59437893,8.669e-05,2]
[420637976,1776394232543,-500.0,8.669e-05,2]
[420637977,1776394232552,-500.0,8.669e-05,2]
[420637978,1776394232562,-397.43382225,8.669e-05,2]
[420637979,1776394232573,-500.0,8.669e-05,2]
[420637980,1776394232583,-428.16976725,8.669e-05,2]
[420637981,1776394232593,-500.0,8.669e-05,2]
[420637982,1776394232604,-500.0,8.669e-05,2]
[420637983,1776394232615,-500.0,8.669e-05,2]
[420637984,1776394232625,-500.0,8.669e-05,2]
[420637985,1776394232635,-399.62552848,8.669e-05,2]
[420637986,1776394232648,-62.61380928,8.669e-05,2]
[420637987,1776394232661,-437.38619072,8.669e-05,2]
[420637988,1776394232670,-159.55421186,8.669e-05,2]
[420637989,1776394232680,-292.45814735,8.669e-05,2]
[420637990,1776394232690,-338.86816472,8.669e-05,2]
[420637991,1776394232701,-71.73328535,8.669e-05,2]
[420637992,1776394232714,-163.14335566,8.669e-05,2]
[420637993,1776394232724,-3086.85664434,8.67e-05,2]
[420637994,1776394232750,-5968.19567803,8.67e-05,2]
[420637995,1776394233658,152.0,8.289e-05,7]
[420637999,1776394238391,-1897.34812686,8.57e-05,2]
[420638000,1776394238403,-602.65187314,8.57e-05,2]
[420638001,1776394238413,-2941.38993561,8.67e-05,2]
[420638002,1776394238444,-1076.55582393,8.67e-05,2]
[420638003,1776394238455,-471.87366345,8.67e-05,2]
[420638004,1776394238499,-2985.98584829,8.67e-05,2]
[420638005,1776394238555,-557.49671702,8.67e-05,2]
[420638006,1776394238660,-535.41792625,8.67e-05,2]
[420638007,1776394238672,-62095.86750208,8.67e-05,2]
[420638008,1776394238684,-42332.94196253,8.67e-05,2]
[420638009,1776394238696,-331.43,8.67e-05,2]
[420638010,1776394238724,-2027.98034925,8.67e-05,2]
[420638011,1776394238736,-1553.52,8.67e-05,2]
[420638012,1776394238769,-528.03991865,8.67e-05,2]
[420638220,1776394240968,-467.57,8.67e-05,2]
[420638221,1776394241019,-181576.52507842,8.67e-05,2]
[420638222,1776394241030,-652.08200092,8.67e-05,2]
[420638223,1776394241063,-7752.27899731,8.67e-05,2]
[420638224,1776394241078,-1360.95947265,8.67e-05,2]
[420638225,1776394241090,-606.6000014,8.67e-05,2]
[420638226,1776394241100,-21042.40124996,8.67e-05,2]
[420638477,1776394243341,-266.917291,8.67e-05,2]
[420638480,1776394243353,-466.75317383,8.67e-05,2]
[420638491,1776394243447,-730.12479506,8.67e-05,2]
[420638764,1776394246221,-7523.09749705,8.67e-05,2]
[420638766,1776394246232,-6727.10023864,8.67e-05,2]
[420638772,1776394246275,-790.75409123,8.67e-05,2]
[420638814,1776394246673,-646.0500007,8.67e-05,2]
[420638823,1776394246746,-2768.85376405,8.67e-05,2]
[420638830,1776394246803,-2000.0,8.67e-05,2]
[420639579,1776394691178,500.0,7.689e-05,2]
[420639589,1776395030078,200.0,8.13e-05,2]
[420639590,1776395053963,200.0,8.13e-05,2]
[420639591,1776395106416,432.0,8.241e-05,2]
[420639592,1776395106447,230.0,8.238e-05,2]
[420639593,1776395140013,9138.01,7.661e-05,2]
[420639594,1776395140034,430.91,7.661e-05,2]
[420639595,1776395150428,200.0,8.13e-05,2]
[420639596,1776395167338,429.0,8.263e-05,2]
[420639597,1776395228977,1600.0,7.665e-05,2]
[420639599,1776395358672,563.54,8.305e-05,2]
[420639601,1776395413876,377.0,8.177e-05,2]
[420639610,1776395431513,-432.0,8.339e-05,2]
[420639611,1776395431522,-250.0,8.366e-05,2]
[420639612,1776395431532,-432.0,8.392e-05,2]
[420639613,1776395431542,-203.18725147,8.459e-05,2]
[420639614,1776395431551,-578.20924308,8.459e-05,2]
[420639615,1776395431562,-574041.9125,8.469e-05,2]
[420639616,1776395431572,-3863.2806,8.47e-05,2]
[420639617,1776395431583,-183.16140459,8.47e-05,2]
[420639618,1776395431594,-300.0,8.542e-05,2]
[420639619,1776395431604,-1200.0,8.542e-05,2]
[420639620,1776395431614,-500.89869851,8.543e-05,2]
[420639621,1776395431623,-157.58789548,8.543e-05,2]
[420639622,1776395431634,-504.65209864,8.543e-05,2]
[420639623,1776395431644,-501.88704047,8.543e-05,2]
[420639624,1776395431653,-174.61919141,8.564e-05,2]
[420639625,1776395431663,-151.0,8.564e-05,2]
[420639626,1776395431673,-200.0,8.565e-05,2]
[420639627,1776395431682,-646.65982734,8.565e-05,2]
[420639628,1776395431691,-1280.88388878,8.565e-05,2]
[420639629,1776395431701,-151.0,8.567e-05,2]
[420639630,1776395431712,-151.0,8.567e-05,2]
[420639631,1776395431722,-3835.00731635,8.568e-05,2]
[420639632,1776395431731,-150.0,8.568e-05,2]
[420639633,1776395431741,-500.0,8.569e-05,2]
[420639634,1776395431751,-500.0,8.569e-05,2]
[420639635,1776395431760,-500.0,8.569e-05,2]
[420639636,1776395431770,-500.0,8.569e-05,2]
[420639637,1776395431779,-500.0,8.569e-05,2]
[420639639,1776395431789,-500.0,8.569e-05,2]
[420639641,1776395431798,-500.0,8.569e-05,2]
[420639643,1776395431807,-500.0,8.569e-05,2]
[420639645,1776395431816,-500.0,8.569e-05,2]
[420639647,1776395431826,-500.0,8.569e-05,2]
[420639657,1776395432216,-500.0,8.569e-05,2]
[420639658,1776395432239,-500.0,8.569e-05,2]
[420639659,1776395432248,-500.0,8.569e-05,2]
[420639660,1776395432257,-500.0,8.569e-05,2]
[420639661,1776395432268,-500.0,8.569e-05,2]
[420639662,1776395432277,-500.0,8.569e-05,2]
[420639663,1776395432286,-500.0,8.569e-05,2]
[420639664,1776395432297,-500.0,8.569e-05,2]
[420639665,1776395432306,-500.0,8.569e-05,2]
[420639666,1776395432316,-500.0,8.569e-05,2]
[420639667,1776395432325,-500.0,8.569e-05,2]
[420639668,1776395432336,-500.0,8.569e-05,2]
[420639669,1776395432346,-500.0,8.569e-05,2]
[420639670,1776395432355,-500.0,8.569e-05,2]
[420639671,1776395432366,-500.0,8.569e-05,2]
[420639672,1776395432376,-500.0,8.569e-05,2]
[420639673,1776395432385,-500.0,8.569e-05,2]
[420639674,1776395432394,-176.4989368,8.569e-05,2]
[420639675,1776395432404,-500.0,8.569e-05,2]
[420639676,1776395432414,-500.0,8.569e-05,2]
[420639677,1776395432423,-500.0,8.569e-05,2]
[420639678,1776395432432,-500.0,8.569e-05,2]
[420639679,1776395432442,-500.0,8.569e-05,2]
[420639680,1776395432451,-500.0,8.569e-05,2]
[420639681,1776395432460,-500.0,8.569e-05,2]
[420639682,1776395432470,-500.0,8.569e-05,2]
[420639683,1776395432479,-500.0,8.569e-05,2]
[420639684,1776395432488,-500.0,8.569e-05,2]
[420639685,1776395432498,-500.0,8.569e-05,2]
[420639686,1776395432507,-500.0,8.569e-05,2]
[420639687,1776395432516,-500.0,8.569e-05,2]
[420639688,1776395432526,-500.0,8.569e-05,2]
[420639689,1776395432535,-500.0,8.569e-05,2]
[420639690,1776395432544,-500.0,8.569e-05,2]
[420639691,1776395432554,-500.0,8.569e-05,2]
[420639692,1776395432563,-500.0,8.569e-05,2]
[420639693,1776395432572,-500.0,8.569e-05,2]
[420639694,1776395432582,-500.0,8.569e-05,2]
[420639695,1776395432591,-500.0,8.569e-05,2]
[420639696,1776395432601,-500.0,8.569e-05,2]
[420639697,1776395432610,-500.0,8.569e-05,2]
[420639698,1776395432619,-500.0,8.569e-05,2]
[420639699,1776395432630,-500.0,8.569e-05,2]
[420639700,1776395432640,-500.0,8.569e-05,2]
[420639701,1776395432650,-500.0,8.569e-05,2]
[420639702,1776395432660,-500.0,8.569e-05,2]
[420639703,1776395432672,-500.0,8.569e-05,2]
[420639704,1776395432683,-500.0,8.569e-05,2]
[420639705,1776395432692,-500.0,8.569e-05,2]
[420639706,1776395432703,-500.0,8.569e-05,2]
[420639707,1776395432712,-500.0,8.569e-05,2]
[420639708,1776395432721,-500.0,8.569e-05,2]
[420639709,1776395432732,-500.0,8.569e-05,2]
[420639710,1776395432741,-500.0,8.569e-05,2]
[420639711,1776395432751,-500.0,8.569e-05,2]
[420639712,1776395432760,-500.0,8.569e-05,2]
[420639713,1776395432770,-500.0,8.569e-05,2]
[420639714,1776395432781,-300.0,8.569e-05,2]
[420639715,1776395432790,-500.0,8.569e-05,2]
[420639716,1776395432799,-500.0,8.569e-05,2]
[420639717,1776395432809,-500.0,8.569e-05,2]
[420639718,1776395432819,-500.0,8.569e-05,2]
[420639719,1776395432828,-500.0,8.569e-05,2]
[420639720,1776395432837,-500.0,8.569e-05,2]
[420639721,1776395432848,-500.0,8.569e-05,2]
[420639722,1776395432858,-500.0,8.569e-05,2]
[420639723,1776395432867,-300.0,8.569e-05,2]
[420639724,1776395432876,-266.62505872,8.569e-05,2]
[420639725,1776395432886,-500.0,8.569e-05,2]
[420639726,1776395432896,-500.0,8.569e-05,2]
[420639727,1776395432905,-500.0,8.569e-05,2]
[420639728,1776395432915,-500.0,8.569e-05,2]
[420639729,1776395432924,-500.0,8.569e-05,2]
[420639730,1776395432934,-518.39102588,8.569e-05,2]
[420639731,1776395432944,-500.0,8.569e-05,2]
[420639732,1776395432953,-500.0,8.569e-05,2]
[420639733,1776395432962,-500.0,8.569e-05,2]
[420639734,1776395432972,-500.0,8.569e-05,2]
[420639735,1776395432981,-500.0,8.569e-05,2]
[420639736,1776395432991,-500.0,8.569e-05,2]
[420639737,1776395433001,-500.0,8.569e-05,2]
[420639738,1776395433011,-500.0,8.569e-05,2]
[420639739,1776395433020,-500.0,8.572e-05,2]
[420639740,1776395433029,-584.10959855,8.572e-05,2]
[420639741,1776395433038,-500.0,8.572e-05,2]
[420639742,1776395433047,-500.0,8.572e-05,2]
[420639743,1776395433057,-500.0,8.572e-05,2]
[420639744,1776395433067,-500.0,8.572e-05,2]
[420639745,1776395433076,-500.0,8.572e-05,2]
[420639746,1776395433085,-630.6942654,8.572e-05,2]
[420639747,1776395433095,-150.0,8.572e-05,2]
[420639748,1776395433104,-151.0,8.619e-05,2]
[420639749,1776395433114,-1600.0,8.623e-05,2]
[420639750,1776395433123,-232.0,8.659e-05,2]
[420639751,1776395433133,-151.0,8.667e-05,2]
[420639752,1776395433143,-1585.73894287,8.668e-05,2]
[420639753,1776395433152,-1530.0,8.668e-05,2]
[420639754,1776395433162,-500.0,8.668e-05,2]
[420639755,1776395433172,-500.0,8.668e-05,2]
[420639756,1776395433181,-430.46640152,8.668e-05,2]
[420639757,1776395433191,-150.0,8.668e-05,2]
[420639758,1776395433202,-150.0,8.668e-05,2]
[420639759,1776395433213,-216.51307357,8.668e-05,2]
[420639760,1776395433223,-190.22386765,8.668e-05,2]
[420639761,1776395433233,-500.0,8.668e-05,2]
[420639762,1776395433246,-500.0,8.668e-05,2]
[420639763,1776395433255,-626.33043755,8.668e-05,2]
[420639764,1776395433265,-500.0,8.668e-05,2]
[420639765,1776395433274,-500.0,8.668e-05,2]
[420639766,1776395433284,-197.81367532,8.668e-05,2]
[420639767,1776395433293,-288.30441735,8.668e-05,2]
[420639768,1776395433302,-158.2921525,8.669e-05,2]
[420639769,1776395433312,-3459.1445405,8.669e-05,2]
[420639770,1776395433322,-150296.0593278,8.669e-05,2]
[420639771,1776395433331,-1037.43324884,8.669e-05,3]
[420639772,1776395433341,-58083.0737593,8.669e-05,2]
[420639773,1776395433351,-229.534006,8.67e-05,2]
[420639774,1776395433360,-500.0,8.67e-05,2]
[420639775,1776395433369,-170.0,8.67e-05,3]
[420639776,1776395433379,-162.0,8.67e-05,3]
[420639777,1776395433389,-157.85100843,8.674e-05,2]
[420639778,1776395433398,-377.0,8.695e-05,2]
[420639779,1776395433407,-153.68213857,8.695e-05,2]
[420639780,1776395433417,-201.0,8.696e-05,2]
[420639781,1776395433427,-717.32194628,8.705e-05,2]
[420639782,1776395433436,-156.0,8.712e-05,5]
[420639783,1776395433445,-1113.0,8.712e-05,5]
[420639784,1776395433455,-1000.333,8.749e-05,2]
[420639785,1776395433465,-174.07607527,8.749e-05,2]
[420639786,1776395433475,-3046.9122031,8.754e-05,2]
[420639787,1776395433484,-405.0,8.764e-05,2]
[420639788,1776395433494,-377.0,8.767e-05,2]
[420639789,1776395433503,-3622.0,8.8e-05,2]
[420639790,1776395433512,-150.54539045,8.839e-05,2]
[420639791,1776395433522,-62846.77465542,8.884e-05,2]
[420639792,1776395433531,-152.040932,8.884e-05,2]
[420639793,1776395433540,-151.0,8.884e-05,2]
[420639794,1776395433550,-151.0,8.884e-05,2]
[420639795,1776395433559,-151.0,8.884e-05,2]
[420639796,1776395433569,-151.0,8.884e-05,2]
[420639797,1776395433578,-7293.83681339,9.03e-05,2]
[420639798,1776395433588,-5411.58022302,9.032e-05,2]
[420639799,1776395433598,-181.08010149,9.112e-05,2]
[420639800,1776395433608,-201.30418957,9.113e-05,2]
[420639801,1776395433617,-1328.27659266,9.113e-05,2]
[420639802,1776395433626,-5000.0,9.173e-05,2]
[420639803,1776395433636,-193.32968902,9.173e-05,2]
[420639804,1776395433647,-250.0,9.173e-05,2]
[420639805,1776395433656,-150.0,9.2e-05,2]
[420639806,1776395433666,-151.0,9.213e-05,2]
[420639807,1776395433676,-153.927072,9.247e-05,2]
[420639808,1776395433685,-150.0,9.247e-05,2]
[420639809,1776395433695,-150.0,9.247e-05,2]
[420639810,1776395433704,-153.80598328,9.247e-05,2]
[420639811,1776395433714,-420.0,9.396e-05,2]
[420639812,1776395433724,-1680.0,9.396e-05,2]
[420639813,1776395433734,-255.0,9.425e-05,2]
[420639814,1776395433743,-1220.184,9.473e-05,2]
[420639815,1776395433753,-928.464,9.475e-05,2]
[420639816,1776395433764,-2473.0,9.479e-05,2]
[420639817,1776395433773,-4881.453,9.479e-05,2]
[420639818,1776395433783,-2000.0,9.524e-05,2]
[420639819,1776395433793,-150.45087984,9.551e-05,2]
[420639820,1776395433802,-1600.0,9.581e-05,2]
[420639821,1776395433812,-151.0,9.589e-05,2]
[420639822,1776395433821,-151.0,9.589e-05,2]
[420639823,1776395433831,-187.78006525,9.66e-05,2]
[420639824,1776395433840,-1377.42282659,9.661e-05,2]
[420639825,1776395433850,-151.0,9.675e-05,2]
[420639826,1776395433859,-200.0,9.678e-05,2]
[420639827,1776395433869,-203.808,9.678e-05,2]
[420639828,1776395433878,-150.0,9.678e-05,2]
[420639829,1776395433888,-1351.339,9.678e-05,2]
[420639830,1776395433898,-1049.659,9.678e-05,2]
[420639831,1776395433907,-1265.342,9.678e-05,2]
[420639832,1776395433917,-150.0,9.701e-05,2]
[420639833,1776395433926,-150.0,9.76e-05,2]
[420639834,1776395433936,-33535.5837875,9.771e-05,2]
[420639835,1776395433946,-160.0,9.779e-05,2]
[420639836,1776395433956,-1200.0,9.8e-05,3]
[420639837,1776395433965,-151.0,9.818e-05,2]
[420639838,1776395433975,-151.0,9.818e-05,2]
[420639839,1776395433984,-151.0,9.818e-05,2]
[420639840,1776395433993,-151.0,9.818e-05,2]
[420639841,1776395434003,-12960.0855498,9.818e-05,2]
[420639842,1776395434013,-2500.0,9.9e-05,3]
[420639843,1776395434023,-151.0,9.997e-05,2]
[420639844,1776395434032,-155.411,9.998e-05,2]
[420639845,1776395434042,-155.956,9.998e-05,2]
[420639846,1776395434051,-165.3269,0.0001,2]
[420639847,1776395434061,-300.0,0.0001,2]
[420639848,1776395434070,-1000.0,0.0001,2]
[420639849,1776395434081,-886.7784497,0.0001,2]
[420639850,1776395434098,-113.2215503,0.0001,2]
[420639851,1776395434108,-1000.0,0.0001,2]
[420639852,1776395434117,-1000.0,0.0001,2]
[420639853,1776395434127,-1000.0,0.0001,2]
[420639854,1776395434138,-1000.0,0.0001,2]
[420639855,1776395434147,-1000.0,0.0001,2]
[420639856,1776395434157,-1000.0,0.0001,2]
[420639857,1776395434166,-1000.0,0.0001,2]
[420639858,1776395434175,-1000.0,0.0001,2]
[420639859,1776395434185,-1000.0,0.0001,2]
[420639860,1776395434194,-1000.0,0.0001,2]
[420639861,1776395434203,-1000.0,0.0001,2]
[420639862,1776395434213,-1000.0,0.0001,2]
[420639863,1776395434223,-1000.0,0.0001,2]
[420639864,1776395434232,-1000.0,0.0001,2]
[420639865,1776395434242,-1000.0,0.0001,2]
[420639866,1776395434251,-1000.0,0.0001,2]
[420639867,1776395434261,-1000.0,0.0001,2]
[420639868,1776395434271,-1000.0,0.0001,2]
[420639869,1776395434282,-1000.0,0.0001,2]
[420639870,1776395434291,-1000.0,0.0001,2]
[420639871,1776395434301,-1000.0,0.0001,2]
[420639872,1776395434311,-1000.0,0.0001,2]
[420639873,1776395434322,-1000.0,0.0001,2]
[420639874,1776395434332,-329.343897,0.0001,2]
[420639875,1776395434342,-300.0,0.0001,2]
[420639876,1776395434352,-1000.0,0.0001,3]
[420639877,1776395434362,-9243.0,0.0001,2]
[420639878,1776395434371,-1000.0,0.0001,2]